[Event "Titled Tuesday Blitz July 11 Early 2023"]
[White "Shimanov, Aleksandr"]
[Black "Petrosian, Karlen"]
[WhiteFideId "4198603"]
[BlackFideId "4176146"]
[WhiteElo "2918"]
[BlackElo "2715"]
[Result "1-0"]
[Round "5"]
[TimeControl "180+2"]
[Date "2023.07.11"]
[WhiteClock "0:00:46"]
[BlackClock "0:00:14"]
[Board "14"]

1. d4 {[%clk 0:03:00]}  Nf6 {[%clk 0:02:52]} 2. Bg5 {[%clk 0:03:00]}  Ne4 {[%clk 0:02:50]} 3. Bh4 {[%clk 0:02:59]}  c5 {[%clk 0:02:50]} 4. f3 {[%clk 0:02:59]}  Nf6 {[%clk 0:02:46]} 5. d5 {[%clk 0:02:47]}  d6 {[%clk 0:02:44]} 6. e4 {[%clk 0:02:45]}  g6 {[%clk 0:02:42]} 7. c4 {[%clk 0:02:41]}  Bg7 {[%clk 0:02:41]} 8. Ne2 {[%clk 0:02:39]}  O-O {[%clk 0:02:41]} 9. Nec3 {[%clk 0:02:40]}  Na6 {[%clk 0:02:41]} 10. Nd2 {[%clk 0:02:39]}  Nc7 {[%clk 0:02:41]} 11. Be2 {[%clk 0:02:39]}  Rb8 {[%clk 0:02:42]} 12. O-O {[%clk 0:02:38]}  Bd7 {[%clk 0:02:40]} 13. a4 {[%clk 0:02:38]}  b6 {[%clk 0:02:38]} 14. Qc2 {[%clk 0:02:31]}  a6 {[%clk 0:02:38]} 15. Rae1 {[%clk 0:02:17]}  b5 {[%clk 0:02:38]} 16. b3 {[%clk 0:02:05]}  bxa4 {[%clk 0:02:35]} 17. bxa4 {[%clk 0:02:03]}  Rb4 {[%clk 0:02:32]} 18. f4 {[%clk 0:01:56]}  Qb8 {[%clk 0:01:47]} 19. e5 {[%clk 0:01:53]}  Bf5 {[%clk 0:01:43]} 20. Qc1 {[%clk 0:01:51]}  dxe5 {[%clk 0:01:43]} 21. fxe5 {[%clk 0:01:49]}  Nd7 {[%clk 0:01:42]} 22. Bxe7 {[%clk 0:01:47]}  Nxe5 {[%clk 0:01:42]} 23. Bxf8 {[%clk 0:01:46]}  Qxf8 {[%clk 0:01:38]} 24. Kh1 {[%clk 0:01:32]}  Ne8 {[%clk 0:01:31]} 25. Nce4 {[%clk 0:01:29]}  Bh6 {[%clk 0:01:19]} 26. Qc3 {[%clk 0:01:26]}  Nd7 {[%clk 0:01:00]} 27. Ng3 {[%clk 0:01:17]}  Nd6 {[%clk 0:00:48]} 28. Nxf5 {[%clk 0:01:17]}  Nxf5 {[%clk 0:00:49]} 29. Bg4 {[%clk 0:01:13]}  Qg7 {[%clk 0:00:39]} 30. Qxg7+ {[%clk 0:01:07]}  Kxg7 {[%clk 0:00:40]} 31. Ne4 {[%clk 0:00:57]}  Rxc4 {[%clk 0:00:28]} 32. Bxf5 {[%clk 0:00:57]}  gxf5 {[%clk 0:00:29]} 33. Nd6 {[%clk 0:00:58]}  Rc2 {[%clk 0:00:23]} 34. Nxf5+ {[%clk 0:00:58]}  Kg6 {[%clk 0:00:24]} 35. Nxh6 {[%clk 0:00:55]}  Kxh6 {[%clk 0:00:25]} 36. Rxf7 {[%clk 0:00:56]}  Ne5 {[%clk 0:00:23]} 37. Re7 {[%clk 0:00:50]}  Nd3 {[%clk 0:00:22]} 38. R1e6+ {[%clk 0:00:49]}  Kg5 {[%clk 0:00:23]} 39. h3 {[%clk 0:00:49]}  Nf4 {[%clk 0:00:21]} 40. Re4 {[%clk 0:00:47]}  Nxd5 {[%clk 0:00:14]} 41. R7e5+ {[%clk 0:00:46]} 1-0


[Site "https://www.chess.com"]

[Event "Titled Tuesday Blitz July 11 Early 2023"]
[White "Parpiev, Isaak"]
[Black "Zakhartsov, Vladimir"]
[WhiteFideId "34281576"]
[BlackFideId "4145097"]
[WhiteElo "2600"]
[BlackElo "2914"]
[Result "0-1"]
[Round "5"]
[TimeControl "180+2"]
[Date "2023.07.11"]
[WhiteClock "0:00:00"]
[BlackClock "0:00:29"]
[Board "15"]

1. d4 {[%clk 0:03:00]}  Nf6 {[%clk 0:02:59]} 2. c4 {[%clk 0:03:01]}  e6 {[%clk 0:02:59]} 3. Nc3 {[%clk 0:03:01]}  d5 {[%clk 0:02:59]} 4. cxd5 {[%clk 0:03:01]}  exd5 {[%clk 0:02:58]} 5. Bg5 {[%clk 0:03:00]}  c6 {[%clk 0:02:58]} 6. e3 {[%clk 0:03:00]}  h6 {[%clk 0:02:56]} 7. Bh4 {[%clk 0:02:51]}  Bd6 {[%clk 0:02:56]} 8. Bd3 {[%clk 0:02:49]}  Nbd7 {[%clk 0:02:51]} 9. Qc2 {[%clk 0:02:38]}  Nf8 {[%clk 0:02:48]} 10. Nf3 {[%clk 0:02:34]}  Bg4 {[%clk 0:02:42]} 11. Ne5 {[%clk 0:02:31]}  Be6 {[%clk 0:02:36]} 12. f4 {[%clk 0:02:29]}  g5 {[%clk 0:02:29]} 13. fxg5 {[%clk 0:02:18]}  N6d7 {[%clk 0:02:29]} 14. Nf3 {[%clk 0:01:54]}  Be7 {[%clk 0:02:29]} 15. O-O-O {[%clk 0:01:48]}  hxg5 {[%clk 0:02:28]} 16. Bg3 {[%clk 0:01:48]}  Qa5 {[%clk 0:02:24]} 17. Kb1 {[%clk 0:01:41]}  O-O-O {[%clk 0:02:18]} 18. e4 {[%clk 0:01:24]}  dxe4 {[%clk 0:02:14]} 19. Bxe4 {[%clk 0:01:23]}  f5 {[%clk 0:02:06]} 20. d5 {[%clk 0:00:53]}  fxe4 {[%clk 0:02:07]} 21. dxe6 {[%clk 0:00:49]}  exf3 {[%clk 0:01:58]} 22. Nd5 {[%clk 0:00:27]}  Qc5 {[%clk 0:01:09]} 23. Nxe7+ {[%clk 0:00:27]}  Qxe7 {[%clk 0:01:09]} 24. exd7+ {[%clk 0:00:28]}  Nxd7 {[%clk 0:01:04]} 25. gxf3 {[%clk 0:00:29]}  Qh7 {[%clk 0:01:04]} 26. Qxh7 {[%clk 0:00:25]}  Rxh7 {[%clk 0:01:05]} 27. f4 {[%clk 0:00:21]}  g4 {[%clk 0:00:54]} 28. f5 {[%clk 0:00:09]}  Rf8 {[%clk 0:00:53]} 29. Rhf1 {[%clk 0:00:08]}  Nf6 {[%clk 0:00:44]} 30. Rd4 {[%clk 0:00:08]}  Rh5 {[%clk 0:00:41]} 31. b4 {[%clk 0:00:07]}  a6 {[%clk 0:00:37]} 32. a4 {[%clk 0:00:07]}  Nd5 {[%clk 0:00:31]} 33. b5 {[%clk 0:00:02]}  axb5 {[%clk 0:00:28]} 34. axb5 {[%clk 0:00:01]}  Nc3+ {[%clk 0:00:28]} 35. Kb2 {[%clk 0:00:01]}  Nxb5 {[%clk 0:00:29]} 36. Rxg4 {[%clk 0:00:00]}  Rhxf5 {[%clk 0:00:29]} 0-1


[Site "https://www.chess.com"]

[Event "Titled Tuesday Blitz July 11 Early 2023"]
[White "Timerkhanov, Alexander"]
[Black "Nihal Sarin"]
[WhiteFideId "24177938"]
[BlackFideId "25092340"]
[WhiteElo "2709"]
[BlackElo "3031"]
[Result "0-1"]
[Round "5"]
[TimeControl "180+2"]
[Date "2023.07.11"]
[WhiteClock "0:00:16"]
[BlackClock "0:01:11"]
[Board "16"]

1. d4 {[%clk 0:03:00]}  d5 {[%clk 0:02:58]} 2. Bf4 {[%clk 0:03:00]}  c5 {[%clk 0:02:58]} 3. e3 {[%clk 0:03:00]}  Nc6 {[%clk 0:02:59]} 4. c3 {[%clk 0:03:00]}  cxd4 {[%clk 0:02:58]} 5. exd4 {[%clk 0:03:00]}  Bf5 {[%clk 0:02:57]} 6. Bd3 {[%clk 0:03:00]}  Bg6 {[%clk 0:02:55]} 7. Nf3 {[%clk 0:02:59]}  e6 {[%clk 0:02:56]} 8. Ne5 {[%clk 0:02:58]}  Bd6 {[%clk 0:02:54]} 9. Nxg6 {[%clk 0:02:56]}  hxg6 {[%clk 0:02:55]} 10. Bxd6 {[%clk 0:02:56]}  Qxd6 {[%clk 0:02:56]} 11. h3 {[%clk 0:02:56]}  Nf6 {[%clk 0:02:54]} 12. Nd2 {[%clk 0:02:56]}  g5 {[%clk 0:02:54]} 13. Qe2 {[%clk 0:02:23]}  Rc8 {[%clk 0:02:49]} 14. a4 {[%clk 0:02:21]}  g4 {[%clk 0:02:44]} 15. Qe3 {[%clk 0:02:19]}  Ke7 {[%clk 0:02:40]} 16. Nf1 {[%clk 0:02:11]}  Na5 {[%clk 0:02:16]} 17. Ng3 {[%clk 0:02:10]}  g6 {[%clk 0:02:16]} 18. Ne2 {[%clk 0:01:58]}  Rh4 {[%clk 0:02:05]} 19. Nf4 {[%clk 0:01:47]}  gxh3 {[%clk 0:02:00]} 20. g3 {[%clk 0:01:40]}  Rhh8 {[%clk 0:01:49]} 21. Rxh3 {[%clk 0:01:32]}  g5 {[%clk 0:01:42]} 22. Rxh8 {[%clk 0:01:20]}  gxf4 {[%clk 0:01:41]} 23. Rxc8 {[%clk 0:00:42]}  fxe3 {[%clk 0:01:40]} 24. f4 {[%clk 0:00:42]}  Nc4 {[%clk 0:01:16]} 25. Bxc4 {[%clk 0:00:27]}  dxc4 {[%clk 0:01:16]} 26. Ke2 {[%clk 0:00:26]}  Qb6 {[%clk 0:01:11]} 27. Rb1 {[%clk 0:00:16]}  Nd5 {[%clk 0:01:11]} 0-1


[Site "https://www.chess.com"]

[Event "Titled Tuesday Blitz July 11 Early 2023"]
[White "Movahed, Sina"]
[Black "Materia, Marco"]
[WhiteFideId "42520835"]
[BlackFideId "45150451"]
[WhiteElo "3011"]
[BlackElo "2683"]
[Result "1-0"]
[Round "5"]
[TimeControl "180+2"]
[Date "2023.07.11"]
[WhiteClock "0:01:15"]
[BlackClock "0:00:12"]
[Board "17"]

1. e4 {[%clk 0:02:59]}  c5 {[%clk 0:03:00]} 2. Nf3 {[%clk 0:02:59]}  e6 {[%clk 0:03:00]} 3. d4 {[%clk 0:02:59]}  cxd4 {[%clk 0:03:01]} 4. Nxd4 {[%clk 0:03:00]}  Nc6 {[%clk 0:03:02]} 5. Nc3 {[%clk 0:03:00]}  Qc7 {[%clk 0:03:02]} 6. Be3 {[%clk 0:02:59]}  a6 {[%clk 0:03:02]} 7. g4 {[%clk 0:02:58]}  b5 {[%clk 0:03:02]} 8. Nxc6 {[%clk 0:02:58]}  Qxc6 {[%clk 0:03:01]} 9. Qd2 {[%clk 0:02:58]}  b4 {[%clk 0:03:01]} 10. Ne2 {[%clk 0:02:58]}  Qxe4 {[%clk 0:03:01]} 11. Rg1 {[%clk 0:02:59]}  Qc4 {[%clk 0:03:02]} 12. Nf4 {[%clk 0:02:56]}  Qc7 {[%clk 0:03:00]} 13. O-O-O {[%clk 0:02:57]}  Nf6 {[%clk 0:02:59]} 14. Nh5 {[%clk 0:02:44]}  Bb7 {[%clk 0:03:00]} 15. Bd4 {[%clk 0:02:44]}  Nxh5 {[%clk 0:02:58]} 16. gxh5 {[%clk 0:02:45]}  Rg8 {[%clk 0:02:58]} 17. f4 {[%clk 0:02:39]}  g6 {[%clk 0:02:50]} 18. hxg6 {[%clk 0:02:36]}  hxg6 {[%clk 0:02:47]} 19. f5 {[%clk 0:02:36]}  O-O-O {[%clk 0:02:20]} 20. Bf6 {[%clk 0:02:10]}  Re8 {[%clk 0:02:15]} 21. Rg4 {[%clk 0:02:07]}  d5 {[%clk 0:02:10]} 22. Bd3 {[%clk 0:01:59]}  Bd6 {[%clk 0:02:02]} 23. fxg6 {[%clk 0:01:57]}  fxg6 {[%clk 0:02:02]} 24. Kb1 {[%clk 0:01:57]}  Ref8 {[%clk 0:01:56]} 25. Bh4 {[%clk 0:01:51]}  e5 {[%clk 0:01:49]} 26. Bg3 {[%clk 0:01:41]}  Rd8 {[%clk 0:01:41]} 27. Bxg6 {[%clk 0:01:39]}  Kb8 {[%clk 0:01:40]} 28. h4 {[%clk 0:01:36]}  Bc8 {[%clk 0:01:38]} 29. Rg5 {[%clk 0:01:35]}  e4 {[%clk 0:01:35]} 30. Bxd6 {[%clk 0:01:25]}  Rxd6 {[%clk 0:01:36]} 31. Bxe4 {[%clk 0:01:24]}  Rxg5 {[%clk 0:01:31]} 32. hxg5 {[%clk 0:01:25]}  Bg4 {[%clk 0:01:31]} 33. Qxb4+ {[%clk 0:01:22]}  Rb6 {[%clk 0:00:55]} 34. Qf8+ {[%clk 0:01:20]}  Bc8 {[%clk 0:00:32]} 35. Bf5 {[%clk 0:01:17]}  Qe5 {[%clk 0:00:15]} 36. Qxc8+ {[%clk 0:01:16]}  Ka7 {[%clk 0:00:12]} 37. b3 {[%clk 0:01:15]} 1-0


[Site "https://www.chess.com"]

[Event "Titled Tuesday Blitz July 11 Early 2023"]
[White "Kantans, Toms"]
[Black "Deac, Bogdan-Daniel"]
[WhiteFideId "11602945"]
[BlackFideId "1226380"]
[WhiteElo "2667"]
[BlackElo "2984"]
[Result "0-1"]
[Round "5"]
[TimeControl "180+2"]
[Date "2023.07.11"]
[WhiteClock "0:00:00"]
[BlackClock "0:00:04"]
[Board "18"]

1. e4 {[%clk 0:03:00]}  c6 {[%clk 0:02:59]} 2. d4 {[%clk 0:02:55]}  d5 {[%clk 0:02:59]} 3. Nc3 {[%clk 0:02:54]}  a6 {[%clk 0:02:59]} 4. Bd3 {[%clk 0:02:46]}  b5 {[%clk 0:02:36]} 5. Nf3 {[%clk 0:02:25]}  Bg4 {[%clk 0:02:35]} 6. h3 {[%clk 0:02:23]}  Bxf3 {[%clk 0:02:31]} 7. Qxf3 {[%clk 0:02:23]}  e6 {[%clk 0:02:32]} 8. O-O {[%clk 0:02:18]}  Nf6 {[%clk 0:02:31]} 9. e5 {[%clk 0:02:07]}  Nfd7 {[%clk 0:02:31]} 10. Ne2 {[%clk 0:02:07]}  c5 {[%clk 0:02:26]} 11. c3 {[%clk 0:02:07]}  Nc6 {[%clk 0:02:26]} 12. Be3 {[%clk 0:02:04]}  Ndxe5 {[%clk 0:01:53]} 13. dxe5 {[%clk 0:02:04]}  Nxe5 {[%clk 0:01:54]} 14. Qg3 {[%clk 0:01:56]}  Nxd3 {[%clk 0:01:54]} 15. Bg5 {[%clk 0:01:34]}  f6 {[%clk 0:01:53]} 16. Qxd3 {[%clk 0:01:29]}  fxg5 {[%clk 0:01:50]} 17. a4 {[%clk 0:01:28]}  bxa4 {[%clk 0:01:25]} 18. Rxa4 {[%clk 0:01:22]}  Qb6 {[%clk 0:01:16]} 19. Rfa1 {[%clk 0:01:13]}  c4 {[%clk 0:00:26]} 20. Qd4 {[%clk 0:00:38]}  Qd6 {[%clk 0:00:25]} 21. Qg4 {[%clk 0:00:30]}  Kf7 {[%clk 0:00:14]} 22. Nd4 {[%clk 0:00:25]}  h5 {[%clk 0:00:09]} 23. Qf3+ {[%clk 0:00:14]}  Kg8 {[%clk 0:00:08]} 24. Re1 {[%clk 0:00:13]}  Rh6 {[%clk 0:00:08]} 25. Qe2 {[%clk 0:00:08]}  Rb8 {[%clk 0:00:05]} 26. b4 {[%clk 0:00:05]}  cxb3 {[%clk 0:00:04]} 27. Rxa6 {[%clk 0:00:05]}  Qd7 {[%clk 0:00:04]} 28. Nxe6 {[%clk 0:00:02]}  b2 {[%clk 0:00:04]} 29. Rb1 {[%clk 0:00:00]}  Re8 {[%clk 0:00:04]} 0-1


[Site "https://www.chess.com"]

[Event "Titled Tuesday Blitz July 11 Early 2023"]
[White "Katz, Alexander"]
[Black "Makarian, Rudik"]
[WhiteFideId "2039796"]
[BlackFideId "44105681"]
[WhiteElo "2645"]
[BlackElo "2940"]
[Result "0-1"]
[Round "5"]
[TimeControl "180+2"]
[Date "2023.07.11"]
[WhiteClock "0:00:02"]
[BlackClock "0:00:15"]
[Board "22"]

1. e4 {[%clk 0:02:59]}  c5 {[%clk 0:02:49]} 2. Nf3 {[%clk 0:02:58]}  Nc6 {[%clk 0:02:49]} 3. Bb5 {[%clk 0:02:54]}  e6 {[%clk 0:02:49]} 4. Bxc6 {[%clk 0:02:54]}  bxc6 {[%clk 0:02:50]} 5. O-O {[%clk 0:02:53]}  Ne7 {[%clk 0:02:50]} 6. d3 {[%clk 0:02:51]}  Ng6 {[%clk 0:02:49]} 7. Re1 {[%clk 0:02:50]}  Be7 {[%clk 0:02:42]} 8. b3 {[%clk 0:02:49]}  e5 {[%clk 0:02:37]} 9. Bb2 {[%clk 0:02:47]}  d6 {[%clk 0:02:36]} 10. c3 {[%clk 0:02:47]}  O-O {[%clk 0:02:04]} 11. d4 {[%clk 0:02:47]}  f5 {[%clk 0:01:43]} 12. exf5 {[%clk 0:02:40]}  Bxf5 {[%clk 0:01:42]} 13. dxe5 {[%clk 0:02:25]}  Bg4 {[%clk 0:01:32]} 14. exd6 {[%clk 0:02:10]}  Bxd6 {[%clk 0:01:33]} 15. Nbd2 {[%clk 0:02:09]}  Nh4 {[%clk 0:01:30]} 16. Re4 {[%clk 0:01:50]}  Bxf3 {[%clk 0:01:15]} 17. Nxf3 {[%clk 0:01:46]}  Nxf3+ {[%clk 0:01:14]} 18. gxf3 {[%clk 0:01:44]}  Qf6 {[%clk 0:01:14]} 19. Qe2 {[%clk 0:01:36]}  Qh6 {[%clk 0:01:07]} 20. h4 {[%clk 0:01:35]}  Bf4 {[%clk 0:01:02]} 21. Kg2 {[%clk 0:00:41]}  Qxh4 {[%clk 0:00:53]} 22. Rh1 {[%clk 0:00:40]}  Qg5+ {[%clk 0:00:53]} 23. Kf1 {[%clk 0:00:40]}  Rad8 {[%clk 0:00:50]} 24. Rg1 {[%clk 0:00:39]}  Qf5 {[%clk 0:00:40]} 25. c4 {[%clk 0:00:36]}  g6 {[%clk 0:00:21]} 26. Re7 {[%clk 0:00:32]}  Rf7 {[%clk 0:00:20]} 27. Re8+ {[%clk 0:00:22]}  Rxe8 {[%clk 0:00:19]} 28. Qxe8+ {[%clk 0:00:22]}  Rf8 {[%clk 0:00:19]} 29. Qe2 {[%clk 0:00:14]}  Kf7 {[%clk 0:00:17]} 30. Rg4 {[%clk 0:00:06]}  Re8 {[%clk 0:00:16]} 31. Qd1 {[%clk 0:00:06]}  g5 {[%clk 0:00:14]} 32. Kg2 {[%clk 0:00:04]}  h5 {[%clk 0:00:15]} 33. Rxf4 {[%clk 0:00:03]}  gxf4 {[%clk 0:00:14]} 34. Qd6 {[%clk 0:00:04]}  Qg6+ {[%clk 0:00:13]} 35. Qxg6+ {[%clk 0:00:04]}  Kxg6 {[%clk 0:00:14]} 36. Bc1 {[%clk 0:00:04]}  Kf5 {[%clk 0:00:14]} 37. Ba3 {[%clk 0:00:05]}  Re2 {[%clk 0:00:14]} 38. Bxc5 {[%clk 0:00:05]}  Rxa2 {[%clk 0:00:15]} 39. b4 {[%clk 0:00:02]}  a6 {[%clk 0:00:15]} 0-1


[Site "https://www.chess.com"]

[Event "Titled Tuesday Blitz July 11 Early 2023"]
[White "Pranav, V"]
[Black "Arabidze, Meri"]
[WhiteFideId "25060783"]
[BlackFideId "13604040"]
[WhiteElo "2940"]
[BlackElo "2645"]
[Result "1-0"]
[Round "5"]
[TimeControl "180+2"]
[Date "2023.07.11"]
[WhiteClock "0:02:25"]
[BlackClock "0:00:24"]
[Board "23"]

1. e4 {[%clk 0:03:00]}  c5 {[%clk 0:02:57]} 2. Nf3 {[%clk 0:03:01]}  e6 {[%clk 0:02:57]} 3. d4 {[%clk 0:03:01]}  cxd4 {[%clk 0:02:58]} 4. Nxd4 {[%clk 0:03:02]}  Nc6 {[%clk 0:02:58]} 5. Nc3 {[%clk 0:03:02]}  a6 {[%clk 0:02:59]} 6. g3 {[%clk 0:02:57]}  Nf6 {[%clk 0:02:55]} 7. Bg2 {[%clk 0:02:57]}  Bc5 {[%clk 0:02:55]} 8. Nxc6 {[%clk 0:02:55]}  bxc6 {[%clk 0:02:55]} 9. e5 {[%clk 0:02:51]}  Nd5 {[%clk 0:02:42]} 10. Ne4 {[%clk 0:02:51]}  Be7 {[%clk 0:02:23]} 11. O-O {[%clk 0:02:48]}  f6 {[%clk 0:02:17]} 12. c4 {[%clk 0:02:46]}  fxe5 {[%clk 0:02:17]} 13. cxd5 {[%clk 0:02:45]}  exd5 {[%clk 0:01:39]} 14. Qh5+ {[%clk 0:02:44]}  g6 {[%clk 0:01:22]} 15. Qxe5 {[%clk 0:02:43]}  O-O {[%clk 0:01:22]} 16. Bh6 {[%clk 0:02:42]}  Rf7 {[%clk 0:01:20]} 17. Ng5 {[%clk 0:02:41]}  Bxg5 {[%clk 0:01:08]} 18. Bxg5 {[%clk 0:02:42]}  Qf8 {[%clk 0:01:08]} 19. Qc3 {[%clk 0:02:36]}  Bb7 {[%clk 0:00:57]} 20. Qd2 {[%clk 0:02:31]}  Re8 {[%clk 0:00:48]} 21. Rfe1 {[%clk 0:02:29]}  Rf5 {[%clk 0:00:35]} 22. Bh6 {[%clk 0:02:28]}  Qf7 {[%clk 0:00:35]} 23. Rxe8+ {[%clk 0:02:27]}  Qxe8 {[%clk 0:00:36]} 24. Re1 {[%clk 0:02:26]}  Re5 {[%clk 0:00:33]} 25. Rxe5 {[%clk 0:02:26]}  Qxe5 {[%clk 0:00:33]} 26. Qb4 {[%clk 0:02:25]}  Qb8 {[%clk 0:00:24]} 27. Qe7 {[%clk 0:02:25]} 1-0


[Site "https://www.chess.com"]

[Event "Titled Tuesday Blitz July 11 Early 2023"]
[White "Djokic, Mihailo"]
[Black "Gordievsky, Dmitry"]
[WhiteFideId "976440"]
[BlackFideId "24112798"]
[WhiteElo "2634"]
[BlackElo "2900"]
[Result "0-1"]
[Round "5"]
[TimeControl "180+2"]
[Date "2023.07.11"]
[WhiteClock "0:00:10"]
[BlackClock "0:00:31"]
[Board "25"]

1. e4 {[%clk 0:03:00]}  c6 {[%clk 0:03:00]} 2. d4 {[%clk 0:03:00]}  d5 {[%clk 0:03:00]} 3. e5 {[%clk 0:03:01]}  Bf5 {[%clk 0:03:00]} 4. h4 {[%clk 0:03:01]}  h5 {[%clk 0:03:01]} 5. Bg5 {[%clk 0:02:59]}  Qb6 {[%clk 0:03:01]} 6. Bd3 {[%clk 0:02:59]}  Qxd4 {[%clk 0:03:01]} 7. Nf3 {[%clk 0:02:59]}  Qg4 {[%clk 0:03:02]} 8. Bxf5 {[%clk 0:02:57]}  Qxf5 {[%clk 0:03:02]} 9. O-O {[%clk 0:02:58]}  f6 {[%clk 0:03:03]} 10. exf6 {[%clk 0:02:45]}  gxf6 {[%clk 0:03:03]} 11. Nd4 {[%clk 0:02:43]}  Qg4 {[%clk 0:02:44]} 12. f3 {[%clk 0:02:39]}  Qd7 {[%clk 0:02:42]} 13. Bc1 {[%clk 0:02:26]}  e5 {[%clk 0:02:41]} 14. Nb3 {[%clk 0:02:23]}  Na6 {[%clk 0:02:35]} 15. c4 {[%clk 0:02:19]}  dxc4 {[%clk 0:02:31]} 16. N3d2 {[%clk 0:02:19]}  O-O-O {[%clk 0:02:24]} 17. Kh2 {[%clk 0:02:15]}  Nc5 {[%clk 0:02:16]} 18. Qc2 {[%clk 0:02:13]}  Qd3 {[%clk 0:02:04]} 19. Qxc4 {[%clk 0:02:11]}  Qxc4 {[%clk 0:01:52]} 20. Nxc4 {[%clk 0:02:11]}  Rd4 {[%clk 0:01:52]} 21. Ne3 {[%clk 0:02:07]}  Rxh4+ {[%clk 0:01:50]} 22. Kg3 {[%clk 0:02:08]}  Rd4 {[%clk 0:01:42]} 23. Nf5 {[%clk 0:02:05]}  Rd7 {[%clk 0:01:39]} 24. Be3 {[%clk 0:02:05]}  Ne7 {[%clk 0:01:32]} 25. Nh4 {[%clk 0:01:56]}  Rg8+ {[%clk 0:01:31]} 26. Kh3 {[%clk 0:01:54]}  Nd3 {[%clk 0:01:31]} 27. Nc3 {[%clk 0:01:49]}  Nxb2 {[%clk 0:01:28]} 28. Ne4 {[%clk 0:01:49]}  Nd5 {[%clk 0:01:27]} 29. Bxa7 {[%clk 0:01:40]}  Be7 {[%clk 0:01:11]} 30. Kh2 {[%clk 0:01:29]}  b6 {[%clk 0:01:09]} 31. Rab1 {[%clk 0:01:25]}  Na4 {[%clk 0:01:04]} 32. Rfc1 {[%clk 0:01:12]}  Rxa7 {[%clk 0:01:04]} 33. Rxc6+ {[%clk 0:01:11]}  Kd7 {[%clk 0:01:04]} 34. Rc4 {[%clk 0:01:10]}  Nc5 {[%clk 0:00:54]} 35. Rd1 {[%clk 0:01:06]}  Ke6 {[%clk 0:00:52]} 36. Rd2 {[%clk 0:00:33]}  f5 {[%clk 0:00:46]} 37. Nxf5 {[%clk 0:00:29]}  Kxf5 {[%clk 0:00:46]} 38. Rxd5 {[%clk 0:00:25]}  Rxa2 {[%clk 0:00:46]} 39. Ng3+ {[%clk 0:00:19]}  Ke6 {[%clk 0:00:46]} 40. Rd1 {[%clk 0:00:15]}  h4 {[%clk 0:00:46]} 41. Nf1 {[%clk 0:00:11]}  Raxg2+ {[%clk 0:00:43]} 42. Kh3 {[%clk 0:00:11]}  Rg1 {[%clk 0:00:33]} 43. Rb4 {[%clk 0:00:11]}  Rh1+ {[%clk 0:00:30]} 44. Nh2 {[%clk 0:00:10]}  Rg3# {[%clk 0:00:31]} 0-1


[Site "https://www.chess.com"]

[Event "Titled Tuesday Blitz July 11 Early 2023"]
[White "Antipov, Mikhail Al."]
[Black "Stepanencu, Nicodim-Cosmin"]
[WhiteFideId "4107012"]
[BlackFideId "1256220"]
[WhiteElo "2896"]
[BlackElo "2634"]
[Result "1-0"]
[Round "5"]
[TimeControl "180+2"]
[Date "2023.07.11"]
[WhiteClock "0:01:11"]
[BlackClock "0:00:03"]
[Board "26"]

1. e4 {[%clk 0:03:00]}  a6 {[%clk 0:02:55]} 2. d4 {[%clk 0:02:59]}  c6 {[%clk 0:02:55]} 3. Bd3 {[%clk 0:02:58]}  d5 {[%clk 0:02:56]} 4. exd5 {[%clk 0:02:58]}  cxd5 {[%clk 0:02:56]} 5. h3 {[%clk 0:02:56]}  g6 {[%clk 0:02:56]} 6. Nf3 {[%clk 0:02:56]}  Bf5 {[%clk 0:02:55]} 7. Bxf5 {[%clk 0:02:56]}  gxf5 {[%clk 0:02:56]} 8. O-O {[%clk 0:02:56]}  e6 {[%clk 0:02:56]} 9. c4 {[%clk 0:02:56]}  Nf6 {[%clk 0:02:54]} 10. Nc3 {[%clk 0:02:56]}  Nc6 {[%clk 0:02:51]} 11. Re1 {[%clk 0:02:52]}  Be7 {[%clk 0:02:47]} 12. Bg5 {[%clk 0:02:52]}  dxc4 {[%clk 0:02:44]} 13. d5 {[%clk 0:02:38]}  Nxd5 {[%clk 0:02:40]} 14. Nxd5 {[%clk 0:02:13]}  Qxd5 {[%clk 0:02:30]} 15. Qxd5 {[%clk 0:02:01]}  exd5 {[%clk 0:02:31]} 16. Rad1 {[%clk 0:02:02]}  Rd8 {[%clk 0:02:08]} 17. Ne5 {[%clk 0:02:00]}  O-O {[%clk 0:01:22]} 18. Nxc6 {[%clk 0:01:46]}  Bxg5 {[%clk 0:01:23]} 19. Nxd8 {[%clk 0:01:47]}  Rxd8 {[%clk 0:01:23]} 20. Re5 {[%clk 0:01:48]}  d4 {[%clk 0:01:24]} 21. Rxf5 {[%clk 0:01:49]}  Bh6 {[%clk 0:01:22]} 22. Rc5 {[%clk 0:01:45]}  b5 {[%clk 0:01:20]} 23. a4 {[%clk 0:01:45]}  Bf8 {[%clk 0:01:06]} 24. Rc6 {[%clk 0:01:44]}  Bg7 {[%clk 0:01:05]} 25. Rc5 {[%clk 0:01:40]}  Rb8 {[%clk 0:00:48]} 26. axb5 {[%clk 0:01:39]}  axb5 {[%clk 0:00:49]} 27. Kf1 {[%clk 0:01:40]}  c3 {[%clk 0:00:43]} 28. bxc3 {[%clk 0:01:29]}  dxc3 {[%clk 0:00:44]} 29. Rb1 {[%clk 0:01:22]}  b4 {[%clk 0:00:44]} 30. Rb3 {[%clk 0:01:23]}  Ra8 {[%clk 0:00:09]} 31. Rxb4 {[%clk 0:01:16]}  Bf8 {[%clk 0:00:09]} 32. Rg4+ {[%clk 0:01:13]}  Kh8 {[%clk 0:00:09]} 33. Rxc3 {[%clk 0:01:14]}  f5 {[%clk 0:00:05]} 34. Rf4 {[%clk 0:01:13]}  Ra5 {[%clk 0:00:03]} 35. g4 {[%clk 0:01:13]}  Bd6 {[%clk 0:00:02]} 36. Rxf5 {[%clk 0:01:13]}  Ra1+ {[%clk 0:00:02]} 37. Kg2 {[%clk 0:01:11]}  Ra2 {[%clk 0:00:03]} 1-0


[Site "https://www.chess.com"]

[Event "Titled Tuesday Blitz July 11 Early 2023"]
[White "NLLO777"]
[Black "Zhigalko, Sergei"]
[BlackFideId "13502956"]
[WhiteElo "2624"]
[BlackElo "2883"]
[Result "0-1"]
[Round "5"]
[TimeControl "180+2"]
[Date "2023.07.11"]
[WhiteClock "0:00:01"]
[BlackClock "0:00:23"]
[Board "27"]

1. Nf3 {[%clk 0:03:00]}  d5 {[%clk 0:03:00]} 2. g3 {[%clk 0:03:01]}  c6 {[%clk 0:03:00]} 3. c4 {[%clk 0:03:00]}  Nf6 {[%clk 0:02:56]} 4. Bg2 {[%clk 0:03:00]}  dxc4 {[%clk 0:02:56]} 5. a4 {[%clk 0:02:59]}  Qd5 {[%clk 0:02:51]} 6. O-O {[%clk 0:02:58]}  g6 {[%clk 0:02:38]} 7. Na3 {[%clk 0:02:41]}  Bg7 {[%clk 0:02:26]} 8. Qc2 {[%clk 0:02:36]}  Be6 {[%clk 0:02:24]} 9. Re1 {[%clk 0:02:23]}  Na6 {[%clk 0:02:18]} 10. h4 {[%clk 0:02:12]}  Qc5 {[%clk 0:01:56]} 11. Ng5 {[%clk 0:02:01]}  Ng4 {[%clk 0:01:22]} 12. Rf1 {[%clk 0:01:37]}  Bd5 {[%clk 0:01:14]} 13. e4 {[%clk 0:01:29]}  Nb4 {[%clk 0:01:10]} 14. Qd1 {[%clk 0:01:22]}  Nxf2 {[%clk 0:01:11]} 15. Rxf2 {[%clk 0:01:12]}  Nd3 {[%clk 0:01:10]} 16. exd5 {[%clk 0:00:44]}  Qxf2+ {[%clk 0:00:52]} 17. Kh1 {[%clk 0:00:18]}  Ne1 {[%clk 0:00:42]} 18. Be4 {[%clk 0:00:12]}  Bd4 {[%clk 0:00:23]} 19. Nh3 {[%clk 0:00:03]}  Qxg3 {[%clk 0:00:23]} 20. d3 {[%clk 0:00:01]}  Qxh3# {[%clk 0:00:23]} 0-1


[Site "https://www.chess.com"]